[Event "Titled Tuesday Blitz April 4 Early 2023"]
[White "Antal, Gergely"]
[Black "Corrales Jimenez, Fidel"]
[WhiteFideId "717312"]
[BlackFideId "3506690"]
[WhiteElo "2471"]
[BlackElo "2541"]
[Result "0-1"]
[Round "06"]
[TimeControl "180+2"]
[Date "2023.04.04"]
[WhiteClock "0:00:05"]
[BlackClock "0:00:07"]

1. e4 {[%clk 0:02:56]}  d5 {[%clk 0:02:57]} 2. exd5 {[%clk 0:02:52]}  Qxd5 {[%clk 0:02:58]} 3. Nf3 {[%clk 0:02:49]}  Nf6 {[%clk 0:02:57]} 4. Be2 {[%clk 0:02:49]}  c5 {[%clk 0:02:56]} 5. O-O {[%clk 0:02:49]}  Nc6 {[%clk 0:02:56]} 6. h3 {[%clk 0:02:47]}  e5 {[%clk 0:02:56]} 7. Nc3 {[%clk 0:02:47]}  Qd6 {[%clk 0:02:56]} 8. Re1 {[%clk 0:02:47]}  Be7 {[%clk 0:02:56]} 9. Bb5 {[%clk 0:02:43]}  Nd7 {[%clk 0:02:55]} 10. Bxc6 {[%clk 0:02:41]}  bxc6 {[%clk 0:02:55]} 11. d3 {[%clk 0:02:41]}  f6 {[%clk 0:02:55]} 12. b3 {[%clk 0:02:35]}  O-O {[%clk 0:02:54]} 13. a4 {[%clk 0:02:31]}  Re8 {[%clk 0:02:54]} 14. Ba3 {[%clk 0:02:30]}  Bf8 {[%clk 0:02:54]} 15. Qd2 {[%clk 0:02:29]}  Qe6 {[%clk 0:02:40]} 16. Qe3 {[%clk 0:02:26]}  h6 {[%clk 0:02:39]} 17. Nd2 {[%clk 0:02:26]}  f5 {[%clk 0:02:38]} 18. Nc4 {[%clk 0:02:25]}  Ba6 {[%clk 0:02:35]} 19. f4 {[%clk 0:01:57]}  Bxc4 {[%clk 0:02:33]} 20. bxc4 {[%clk 0:01:58]}  Qf6 {[%clk 0:02:33]} 21. fxe5 {[%clk 0:01:13]}  Rxe5 {[%clk 0:02:32]} 22. Qd2 {[%clk 0:01:13]}  Rae8 {[%clk 0:02:30]} 23. Bb2 {[%clk 0:01:09]}  Qh4 {[%clk 0:02:25]} 24. Rxe5 {[%clk 0:01:05]}  Nxe5 {[%clk 0:02:25]} 25. Rf1 {[%clk 0:01:02]}  g6 {[%clk 0:02:14]} 26. Ne2 {[%clk 0:01:01]}  Bg7 {[%clk 0:02:13]} 27. Nf4 {[%clk 0:00:57]}  Qg5 {[%clk 0:02:12]} 28. Bc1 {[%clk 0:00:53]}  Nf7 {[%clk 0:02:05]} 29. Kh1 {[%clk 0:00:53]}  Qg3 {[%clk 0:01:58]} 30. Ne2 {[%clk 0:00:38]}  Qe5 {[%clk 0:01:56]} 31. Nf4 {[%clk 0:00:36]}  g5 {[%clk 0:01:54]} 32. Nh5 {[%clk 0:00:36]}  Bh8 {[%clk 0:01:55]} 33. Qf2 {[%clk 0:00:32]}  f4 {[%clk 0:01:54]} 34. Qf3 {[%clk 0:00:30]}  Qe2 {[%clk 0:01:49]} 35. Qxc6 {[%clk 0:00:18]}  Qxf1+ {[%clk 0:01:46]} 36. Kh2 {[%clk 0:00:19]}  Qe1 {[%clk 0:01:05]} 37. Qg6+ {[%clk 0:00:18]}  Kf8 {[%clk 0:01:04]} 38. Ba3 {[%clk 0:00:18]}  Qe5 {[%clk 0:01:01]} 39. Qc6 {[%clk 0:00:17]}  f3+ {[%clk 0:01:00]} 40. Ng3 {[%clk 0:00:14]}  Re6 {[%clk 0:00:46]} 41. Bxc5+ {[%clk 0:00:13]}  Kg7 {[%clk 0:00:46]} 42. Qc8 {[%clk 0:00:13]}  Re8 {[%clk 0:00:39]} 43. Qc6 {[%clk 0:00:12]}  fxg2 {[%clk 0:00:33]} 44. Bd4 {[%clk 0:00:12]}  g1=Q+ {[%clk 0:00:34]} 45. Bxg1 {[%clk 0:00:11]}  Kh7 {[%clk 0:00:29]} 46. d4 {[%clk 0:00:07]}  Qe6 {[%clk 0:00:24]} 47. Qf3 {[%clk 0:00:07]}  Kg8 {[%clk 0:00:20]} 48. c5 {[%clk 0:00:08]}  Qc4 {[%clk 0:00:17]} 49. c3 {[%clk 0:00:08]}  Qa2+ {[%clk 0:00:17]} 50. Bf2 {[%clk 0:00:08]}  Qe6 {[%clk 0:00:11]} 51. c6 {[%clk 0:00:06]}  Rd8 {[%clk 0:00:11]} 52. Nh5 {[%clk 0:00:05]}  Bg7 {[%clk 0:00:07]} 53. Ng3 {[%clk 0:00:04]}  Bf8 {[%clk 0:00:07]} 54. Nf5 {[%clk 0:00:05]}  Bd6+ {[%clk 0:00:07]} 55. Kg2 {[%clk 0:00:05]}  Bf4 {[%clk 0:00:07]} 56. d5 {[%clk 0:00:04]}  Qxf5 {[%clk 0:00:07]} 57. c4 {[%clk 0:00:05]}  Ne5 {[%clk 0:00:07]} 58. c7 {[%clk 0:00:05]}  Rc8 {[%clk 0:00:07]} 59. d6 {[%clk 0:00:05]}  Nxf3 {[%clk 0:00:07]} 0-1


[Site "https://www.chess.com"]

[Event "Titled Tuesday Blitz April 4 Early 2023"]
[White "Moroni, Luca Jr"]
[Black "Domingo Nunez, Ruben"]
[WhiteFideId "865834"]
[BlackFideId "22245570"]
[WhiteElo "2569"]
[BlackElo "2404"]
[Result "1-0"]
[Round "06"]
[TimeControl "180+2"]
[Date "2023.04.04"]
[WhiteClock "0:01:19"]
[BlackClock "0:00:37"]

1. d4 {[%clk 0:03:00]}  g6 {[%clk 0:02:59]} 2. e4 {[%clk 0:03:00]}  Bg7 {[%clk 0:03:00]} 3. Nc3 {[%clk 0:03:01]}  c6 {[%clk 0:03:01]} 4. h3 {[%clk 0:02:58]}  d5 {[%clk 0:03:01]} 5. e5 {[%clk 0:02:58]}  f6 {[%clk 0:03:02]} 6. Nf3 {[%clk 0:02:50]}  Nh6 {[%clk 0:03:01]} 7. Bf4 {[%clk 0:02:49]}  Nf7 {[%clk 0:02:57]} 8. exf6 {[%clk 0:02:42]}  exf6 {[%clk 0:02:58]} 9. Qd2 {[%clk 0:02:40]}  Bf5 {[%clk 0:02:54]} 10. O-O-O {[%clk 0:02:37]}  g5 {[%clk 0:02:51]} 11. Re1+ {[%clk 0:02:33]}  Kf8 {[%clk 0:02:51]} 12. Bh2 {[%clk 0:02:31]}  h5 {[%clk 0:02:51]} 13. Bd3 {[%clk 0:02:29]}  Qd7 {[%clk 0:02:48]} 14. Kb1 {[%clk 0:02:23]}  Bh6 {[%clk 0:02:41]} 15. Qd1 {[%clk 0:02:16]}  Kg7 {[%clk 0:02:39]} 16. Bxf5 {[%clk 0:02:08]}  Qxf5 {[%clk 0:02:40]} 17. Re7 {[%clk 0:02:08]}  b6 {[%clk 0:01:54]} 18. g4 {[%clk 0:02:04]}  hxg4 {[%clk 0:01:47]} 19. hxg4 {[%clk 0:02:03]}  Qc8 {[%clk 0:01:42]} 20. Ne5 {[%clk 0:01:24]}  fxe5 {[%clk 0:00:52]} 21. Bxe5+ {[%clk 0:01:23]}  Kf8 {[%clk 0:00:52]} 22. Rxf7+ {[%clk 0:01:22]}  Kxf7 {[%clk 0:00:53]} 23. Qf3+ {[%clk 0:01:22]}  Ke7 {[%clk 0:00:40]} 24. Qf6+ {[%clk 0:01:19]}  Kd7 {[%clk 0:00:37]} 25. Qf7+ {[%clk 0:01:18]}  Kd8 {[%clk 0:00:37]} 26. Bf6# {[%clk 0:01:19]} 1-0


[Site "https://www.chess.com"]

[Event "Titled Tuesday Blitz April 4 Early 2023"]
[White "Danielyan, Vahe"]
[Black "Bachmann, Axel"]
[WhiteFideId "13304828"]
[BlackFideId "3700488"]
[WhiteElo "2423"]
[BlackElo "2605"]
[Result "0-1"]
[Round "06"]
[TimeControl "180+2"]
[Date "2023.04.04"]
[WhiteClock "0:00:57"]
[BlackClock "0:00:07"]

1. e4 {[%clk 0:03:00]}  e5 {[%clk 0:02:57]} 2. Nf3 {[%clk 0:03:00]}  Nf6 {[%clk 0:02:57]} 3. d4 {[%clk 0:02:59]}  Nxe4 {[%clk 0:02:56]} 4. Bd3 {[%clk 0:02:58]}  d5 {[%clk 0:02:57]} 5. Nxe5 {[%clk 0:02:58]}  Nd7 {[%clk 0:02:55]} 6. Nxd7 {[%clk 0:02:58]}  Bxd7 {[%clk 0:02:55]} 7. O-O {[%clk 0:02:58]}  Bd6 {[%clk 0:02:54]} 8. Nd2 {[%clk 0:02:58]}  f5 {[%clk 0:02:34]} 9. c4 {[%clk 0:02:56]}  c6 {[%clk 0:02:31]} 10. Qb3 {[%clk 0:02:47]}  Qb6 {[%clk 0:02:20]} 11. c5 {[%clk 0:02:44]}  Qxb3 {[%clk 0:02:20]} 12. axb3 {[%clk 0:02:36]}  Bc7 {[%clk 0:02:21]} 13. f3 {[%clk 0:02:31]}  Ng5 {[%clk 0:02:17]} 14. b4 {[%clk 0:02:29]}  O-O {[%clk 0:02:15]} 15. Nb3 {[%clk 0:02:23]}  Ne6 {[%clk 0:02:15]} 16. Re1 {[%clk 0:02:17]}  a6 {[%clk 0:02:15]} 17. Bd2 {[%clk 0:02:10]}  Rae8 {[%clk 0:02:13]} 18. g3 {[%clk 0:01:55]}  f4 {[%clk 0:02:05]} 19. g4 {[%clk 0:01:55]}  Ng5 {[%clk 0:01:41]} 20. Kg2 {[%clk 0:01:54]}  h5 {[%clk 0:01:42]} 21. h3 {[%clk 0:01:48]}  hxg4 {[%clk 0:01:31]} 22. hxg4 {[%clk 0:01:49]}  Bxg4 {[%clk 0:01:04]} 23. fxg4 {[%clk 0:01:38]}  f3+ {[%clk 0:01:05]} 24. Kf1 {[%clk 0:01:33]}  Ne4 {[%clk 0:01:05]} 25. Bxe4 {[%clk 0:01:30]}  dxe4 {[%clk 0:01:06]} 26. Kf2 {[%clk 0:01:30]}  Bf4 {[%clk 0:00:54]} 27. Be3 {[%clk 0:01:23]}  Bxe3+ {[%clk 0:00:50]} 28. Rxe3 {[%clk 0:01:23]}  Rf4 {[%clk 0:00:50]} 29. Rae1 {[%clk 0:01:19]}  Rxg4 {[%clk 0:00:49]} 30. Rxf3 {[%clk 0:01:18]}  Re6 {[%clk 0:00:44]} 31. Nd2 {[%clk 0:01:15]}  Rh4 {[%clk 0:00:32]} 32. Rg3 {[%clk 0:01:03]}  e3+ {[%clk 0:00:14]} 33. Rexe3 {[%clk 0:01:02]}  Rf6+ {[%clk 0:00:08]} 34. Ke2 {[%clk 0:01:02]}  Rxd4 {[%clk 0:00:08]} 35. Re7 {[%clk 0:00:59]}  Rxb4 {[%clk 0:00:05]} 36. Rgxg7+ {[%clk 0:00:57]}  Kf8 {[%clk 0:00:06]} 37. Rxb7 {[%clk 0:00:57]}  Re6+ {[%clk 0:00:07]} 38. Kd3 {[%clk 0:00:57]}  Rb5 {[%clk 0:00:06]} 39. Rxb5 {[%clk 0:00:56]}  axb5 {[%clk 0:00:07]} 40. Nb3 {[%clk 0:00:57]}  Kxg7 {[%clk 0:00:06]} 41. Nd4 {[%clk 0:00:57]}  Rf6 {[%clk 0:00:04]} 42. Ke4 {[%clk 0:00:55]}  Kf7 {[%clk 0:00:04]} 43. Ke5 {[%clk 0:00:56]}  Rh6 {[%clk 0:00:04]} 44. b4 {[%clk 0:00:56]}  Rh4 {[%clk 0:00:01]} 45. Nf5 {[%clk 0:00:56]}  Rxb4 {[%clk 0:00:01]} 46. Nd6+ {[%clk 0:00:57]}  Ke7 {[%clk 0:00:02]} 47. Nc8+ {[%clk 0:00:57]}  Kd7 {[%clk 0:00:02]} 48. Nd6 {[%clk 0:00:56]}  Rb1 {[%clk 0:00:02]} 49. Nf5 {[%clk 0:00:56]}  Re1+ {[%clk 0:00:03]} 50. Kd4 {[%clk 0:00:56]}  Rd1+ {[%clk 0:00:04]} 51. Ke5 {[%clk 0:00:56]}  Rd5+ {[%clk 0:00:04]} 52. Ke4 {[%clk 0:00:57]}  Rxc5 {[%clk 0:00:04]} 53. Nd4 {[%clk 0:00:57]}  Rc4 {[%clk 0:00:05]} 54. Kd3 {[%clk 0:00:57]}  Rxd4+ {[%clk 0:00:06]} 55. Kxd4 {[%clk 0:00:57]}  Kd6 {[%clk 0:00:07]} 0-1


[Site "https://www.chess.com"]

[Event "Titled Tuesday Blitz April 4 Early 2023"]
[White "Belov, Alexei"]
[Black "Pakleza, Zbigniew"]
[WhiteFideId "4128206"]
[BlackFideId "1119290"]
[WhiteElo "2632"]
[BlackElo "2410"]
[Result "0-1"]
[Round "06"]
[TimeControl "180+2"]
[Date "2023.04.04"]
[WhiteClock "0:01:42"]
[BlackClock "0:00:42"]

1. e4 {[%clk 0:03:00]}  d6 {[%clk 0:03:00]} 2. d4 {[%clk 0:03:00]}  Nf6 {[%clk 0:03:01]} 3. Nc3 {[%clk 0:03:00]}  c6 {[%clk 0:03:01]} 4. a4 {[%clk 0:02:55]}  Nbd7 {[%clk 0:03:01]} 5. Nf3 {[%clk 0:02:55]}  e5 {[%clk 0:03:02]} 6. Bc4 {[%clk 0:02:54]}  Be7 {[%clk 0:03:01]} 7. O-O {[%clk 0:02:54]}  O-O {[%clk 0:03:00]} 8. Ba2 {[%clk 0:02:53]}  a5 {[%clk 0:02:59]} 9. Qe2 {[%clk 0:02:53]}  h6 {[%clk 0:02:55]} 10. Rd1 {[%clk 0:02:52]}  Qc7 {[%clk 0:02:52]} 11. Nh4 {[%clk 0:02:52]}  exd4 {[%clk 0:02:28]} 12. Rxd4 {[%clk 0:02:51]}  Re8 {[%clk 0:02:20]} 13. Rd1 {[%clk 0:02:40]}  Bf8 {[%clk 0:02:14]} 14. Ng6 {[%clk 0:02:27]}  d5 {[%clk 0:02:09]} 15. Nxf8 {[%clk 0:02:20]}  Nxf8 {[%clk 0:02:09]} 16. f3 {[%clk 0:02:13]}  Bf5 {[%clk 0:01:55]} 17. Qf2 {[%clk 0:02:01]}  dxe4 {[%clk 0:01:48]} 18. fxe4 {[%clk 0:02:01]}  Bxe4 {[%clk 0:01:15]} 19. Bxh6 {[%clk 0:01:48]}  Ng4 {[%clk 0:00:59]} 20. Qd4 {[%clk 0:01:46]}  Qxh2+ {[%clk 0:00:52]} 21. Kf1 {[%clk 0:01:42]}  Bxg2# {[%clk 0:00:42]} 0-1


[Site "https://www.chess.com"]

[Event "Titled Tuesday Blitz April 4 Early 2023"]
[White "Ahn, Hongjin"]
[Black "Mahdavi, Reza"]
[WhiteFideId "13201492"]
[BlackFideId "12595926"]
[WhiteElo "2182"]
[BlackElo "2357"]
[Result "1-0"]
[Round "06"]
[TimeControl "180+2"]
[Date "2023.04.04"]
[WhiteClock "0:00:06"]
[BlackClock "0:00:06"]

1. e4 {[%clk 0:03:00]}  c5 {[%clk 0:03:00]} 2. Nf3 {[%clk 0:03:00]}  e6 {[%clk 0:03:00]} 3. d4 {[%clk 0:03:01]}  cxd4 {[%clk 0:03:01]} 4. Nxd4 {[%clk 0:03:01]}  Nc6 {[%clk 0:03:02]} 5. Be3 {[%clk 0:02:59]}  Nf6 {[%clk 0:03:02]} 6. Nd2 {[%clk 0:02:57]}  Qc7 {[%clk 0:02:59]} 7. c3 {[%clk 0:02:56]}  a6 {[%clk 0:03:00]} 8. Be2 {[%clk 0:02:57]}  Be7 {[%clk 0:03:00]} 9. O-O {[%clk 0:02:57]}  O-O {[%clk 0:03:01]} 10. h3 {[%clk 0:02:56]}  d5 {[%clk 0:03:01]} 11. exd5 {[%clk 0:02:56]}  Nxd5 {[%clk 0:03:02]} 12. Nxc6 {[%clk 0:02:53]}  bxc6 {[%clk 0:02:59]} 13. Nc4 {[%clk 0:02:50]}  Nxe3 {[%clk 0:02:59]} 14. Nxe3 {[%clk 0:02:50]}  Rb8 {[%clk 0:02:58]} 15. Qc2 {[%clk 0:02:50]}  e5 {[%clk 0:02:56]} 16. Rad1 {[%clk 0:02:49]}  f5 {[%clk 0:02:55]} 17. Rfe1 {[%clk 0:02:44]}  Kh8 {[%clk 0:02:49]} 18. Nc4 {[%clk 0:02:37]}  e4 {[%clk 0:02:46]} 19. Bf1 {[%clk 0:02:29]}  Be6 {[%clk 0:02:46]} 20. b3 {[%clk 0:02:24]}  Rbd8 {[%clk 0:02:45]} 21. Rxd8 {[%clk 0:02:18]}  Rxd8 {[%clk 0:02:46]} 22. Rd1 {[%clk 0:02:18]}  Rd5 {[%clk 0:02:43]} 23. Ne3 {[%clk 0:02:16]}  Rxd1 {[%clk 0:02:42]} 24. Qxd1 {[%clk 0:02:17]}  f4 {[%clk 0:02:42]} 25. Nc2 {[%clk 0:02:10]}  c5 {[%clk 0:02:40]} 26. Bxa6 {[%clk 0:02:06]}  f3 {[%clk 0:02:03]} 27. Bc4 {[%clk 0:01:58]}  Bxc4 {[%clk 0:01:56]} 28. bxc4 {[%clk 0:01:59]}  fxg2 {[%clk 0:01:46]} 29. Ne3 {[%clk 0:01:56]}  g6 {[%clk 0:01:42]} 30. Qd5 {[%clk 0:01:55]}  Qf4 {[%clk 0:01:39]} 31. Nxg2 {[%clk 0:01:29]}  Qc1+ {[%clk 0:01:36]} 32. Kh2 {[%clk 0:01:30]}  Qxc3 {[%clk 0:01:37]} 33. Ne3 {[%clk 0:01:26]}  Qf6 {[%clk 0:01:35]} 34. Kg2 {[%clk 0:01:24]}  Qf3+ {[%clk 0:01:29]} 35. Kg1 {[%clk 0:01:22]}  Bh4 {[%clk 0:01:30]} 36. Qe5+ {[%clk 0:01:09]}  Kg8 {[%clk 0:01:27]} 37. Ng4 {[%clk 0:01:06]}  h5 {[%clk 0:01:22]} 38. Qe6+ {[%clk 0:01:02]}  Kg7 {[%clk 0:01:17]} 39. Qd7+ {[%clk 0:01:01]}  Kh8 {[%clk 0:01:14]} 40. Qe8+ {[%clk 0:00:56]}  Kh7 {[%clk 0:01:13]} 41. Qd7+ {[%clk 0:00:56]}  Kg8 {[%clk 0:01:11]} 42. Qc8+ {[%clk 0:00:55]}  Kg7 {[%clk 0:01:09]} 43. Qb7+ {[%clk 0:00:54]}  Kf8 {[%clk 0:00:59]} 44. Qb8+ {[%clk 0:00:50]}  Ke7 {[%clk 0:00:56]} 45. Qe5+ {[%clk 0:00:47]}  Kd7 {[%clk 0:00:52]} 46. Qd5+ {[%clk 0:00:37]}  Ke8 {[%clk 0:00:44]} 47. Qe6+ {[%clk 0:00:35]}  Kf8 {[%clk 0:00:31]} 48. Qd6+ {[%clk 0:00:29]}  Kg7 {[%clk 0:00:13]} 49. Qc7+ {[%clk 0:00:25]}  Kg8 {[%clk 0:00:11]} 50. Qb8+ {[%clk 0:00:23]}  Kg7 {[%clk 0:00:11]} 51. Qb2+ {[%clk 0:00:22]}  Kh7 {[%clk 0:00:05]} 52. Ne5 {[%clk 0:00:12]}  Qxh3 {[%clk 0:00:04]} 53. Qb7+ {[%clk 0:00:12]}  Kg8 {[%clk 0:00:02]} 54. Qd5+ {[%clk 0:00:09]}  Kh8 {[%clk 0:00:02]} 55. Nxg6+ {[%clk 0:00:06]}  Kg7 {[%clk 0:00:03]} 56. Qxe4 {[%clk 0:00:06]}  Bg5 {[%clk 0:00:01]} 57. Ne5 {[%clk 0:00:05]}  Qe6 {[%clk 0:00:01]} 58. f4 {[%clk 0:00:05]}  Bf6 {[%clk 0:00:02]} 59. Kf2 {[%clk 0:00:05]}  Bxe5 {[%clk 0:00:02]} 60. Qxe5+ {[%clk 0:00:04]}  Kf7 {[%clk 0:00:02]} 61. Qxe6+ {[%clk 0:00:04]}  Kxe6 {[%clk 0:00:03]} 62. a4 {[%clk 0:00:05]}  Kd6 {[%clk 0:00:04]} 63. a5 {[%clk 0:00:05]}  Kc6 {[%clk 0:00:05]} 64. f5 {[%clk 0:00:06]}  Kb7 {[%clk 0:00:05]} 65. f6 {[%clk 0:00:06]}  Ka6 {[%clk 0:00:06]} 1-0


[Site "https://www.chess.com"]

[Event "Titled Tuesday Blitz April 4 Early 2023"]
[White "Oleksiyenko, Mykhaylo"]
[Black "Devaev, Alexander"]
[WhiteFideId "4152417"]
[BlackFideId "4169395"]
[WhiteElo "2551"]
[BlackElo "2204"]
[Result "0-1"]
[Round "06"]
[TimeControl "180+2"]
[Date "2023.04.04"]
[WhiteClock "0:00:01"]
[BlackClock "0:00:17"]

1. e4 {[%clk 0:03:00]}  c6 {[%clk 0:02:58]} 2. Nf3 {[%clk 0:03:00]}  d5 {[%clk 0:02:58]} 3. Nc3 {[%clk 0:03:01]}  Nf6 {[%clk 0:02:54]} 4. e5 {[%clk 0:03:00]}  Ne4 {[%clk 0:02:54]} 5. Ne2 {[%clk 0:02:59]}  e6 {[%clk 0:02:54]} 6. d3 {[%clk 0:02:50]}  Nc5 {[%clk 0:02:54]} 7. d4 {[%clk 0:02:51]}  Ncd7 {[%clk 0:02:55]} 8. h4 {[%clk 0:02:46]}  b6 {[%clk 0:02:53]} 9. h5 {[%clk 0:02:45]}  Ba6 {[%clk 0:02:51]} 10. h6 {[%clk 0:02:44]}  g6 {[%clk 0:02:51]} 11. Bg5 {[%clk 0:02:42]}  Be7 {[%clk 0:02:51]} 12. Bxe7 {[%clk 0:02:39]}  Qxe7 {[%clk 0:02:52]} 13. c3 {[%clk 0:02:35]}  O-O {[%clk 0:02:39]} 14. Nf4 {[%clk 0:02:31]}  Bxf1 {[%clk 0:02:35]} 15. Kxf1 {[%clk 0:02:32]}  c5 {[%clk 0:02:36]} 16. Rh3 {[%clk 0:02:16]}  Nc6 {[%clk 0:02:33]} 17. Rg3 {[%clk 0:02:16]}  cxd4 {[%clk 0:02:27]} 18. cxd4 {[%clk 0:02:16]}  Rfc8 {[%clk 0:02:17]} 19. a3 {[%clk 0:02:03]}  Na5 {[%clk 0:02:12]} 20. Ng5 {[%clk 0:01:53]}  Nf8 {[%clk 0:02:10]} 21. Qd3 {[%clk 0:01:07]}  Rc7 {[%clk 0:02:01]} 22. Nh5 {[%clk 0:01:03]}  Rac8 {[%clk 0:01:54]} 23. Nf6+ {[%clk 0:00:59]}  Kh8 {[%clk 0:01:54]} 24. Kg1 {[%clk 0:00:52]}  Rc1+ {[%clk 0:01:38]} 25. Rxc1 {[%clk 0:00:52]}  Rxc1+ {[%clk 0:01:39]} 26. Kh2 {[%clk 0:00:53]}  Rc4 {[%clk 0:01:39]} 27. Rf3 {[%clk 0:00:51]}  Nc6 {[%clk 0:01:40]} 28. b3 {[%clk 0:00:21]}  Rxd4 {[%clk 0:01:36]} 29. Qc3 {[%clk 0:00:22]}  Qc7 {[%clk 0:00:44]} 30. Qxc6 {[%clk 0:00:16]}  Qxe5+ {[%clk 0:00:44]} 31. g3 {[%clk 0:00:14]}  Qxg5 {[%clk 0:00:40]} 32. Qc3 {[%clk 0:00:10]}  Qxh6+ {[%clk 0:00:39]} 33. Kg2 {[%clk 0:00:09]}  Qd2 {[%clk 0:00:29]} 34. Qc8 {[%clk 0:00:09]}  Qh6 {[%clk 0:00:20]} 35. Nd7 {[%clk 0:00:08]}  Kg8 {[%clk 0:00:20]} 36. Qe8 {[%clk 0:00:05]}  Qg7 {[%clk 0:00:17]} 37. Nf6+ {[%clk 0:00:04]}  Kh8 {[%clk 0:00:18]} 38. Rc3 {[%clk 0:00:03]}  h5 {[%clk 0:00:16]} 39. Rc8 {[%clk 0:00:01]}  Qxf6 {[%clk 0:00:17]} 40. Qxf8+ {[%clk 0:00:02]}  Kh7 {[%clk 0:00:18]} 41. Ra8 {[%clk 0:00:01]}  Qg7 {[%clk 0:00:17]} 0-1


[Site "https://www.chess.com"]

[Event "Titled Tuesday Blitz April 4 Early 2023"]
[White "Andreev, Konstantin"]
[Black "Bortnyk, Olexandr"]
[WhiteFideId "24239305"]
[BlackFideId "14120828"]
[WhiteElo "2106"]
[BlackElo "2734"]
[Result "0-1"]
[Round "06"]
[TimeControl "180+2"]
[Date "2023.04.04"]
[WhiteClock "0:00:05"]
[BlackClock "0:00:53"]

1. e4 {[%clk 0:02:36]}  Nf6 {[%clk 0:03:00]} 2. e5 {[%clk 0:02:35]}  Nd5 {[%clk 0:03:00]} 3. d4 {[%clk 0:02:36]}  d6 {[%clk 0:03:01]} 4. c4 {[%clk 0:02:37]}  Nb6 {[%clk 0:03:01]} 5. exd6 {[%clk 0:02:37]}  exd6 {[%clk 0:03:02]} 6. Nc3 {[%clk 0:02:35]}  Be7 {[%clk 0:03:03]} 7. Bd3 {[%clk 0:02:32]}  O-O {[%clk 0:03:03]} 8. Nge2 {[%clk 0:02:31]}  Na6 {[%clk 0:03:04]} 9. a3 {[%clk 0:02:29]}  c6 {[%clk 0:03:05]} 10. Qc2 {[%clk 0:02:27]}  g6 {[%clk 0:03:04]} 11. Be3 {[%clk 0:02:26]}  d5 {[%clk 0:02:58]} 12. c5 {[%clk 0:02:26]}  Nc4 {[%clk 0:02:59]} 13. Bxc4 {[%clk 0:02:25]}  dxc4 {[%clk 0:03:00]} 14. O-O {[%clk 0:02:25]}  Nc7 {[%clk 0:02:56]} 15. Ne4 {[%clk 0:02:23]}  Be6 {[%clk 0:02:53]} 16. Bf4 {[%clk 0:02:20]}  Nd5 {[%clk 0:02:40]} 17. Bd6 {[%clk 0:02:20]}  b5 {[%clk 0:02:29]} 18. Bxe7 {[%clk 0:01:58]}  Qxe7 {[%clk 0:02:30]} 19. Nd6 {[%clk 0:01:58]}  Rfd8 {[%clk 0:02:21]} 20. Rfe1 {[%clk 0:01:55]}  Qh4 {[%clk 0:02:20]} 21. Rad1 {[%clk 0:01:47]}  a5 {[%clk 0:02:19]} 22. Ng3 {[%clk 0:01:41]}  a4 {[%clk 0:02:13]} 23. Re4 {[%clk 0:01:36]}  Qf6 {[%clk 0:02:08]} 24. Rde1 {[%clk 0:01:35]}  Nf4 {[%clk 0:02:01]} 25. Qd2 {[%clk 0:01:23]}  Nd3 {[%clk 0:01:59]} 26. R1e3 {[%clk 0:01:21]}  Ra7 {[%clk 0:01:48]} 27. Rf3 {[%clk 0:01:14]}  Qg7 {[%clk 0:01:49]} 28. Rfe3 {[%clk 0:01:04]}  Rad7 {[%clk 0:01:46]} 29. Qc3 {[%clk 0:01:00]}  h5 {[%clk 0:01:38]} 30. Ne2 {[%clk 0:00:59]}  Rxd6 {[%clk 0:01:35]} 31. cxd6 {[%clk 0:00:59]}  Rxd6 {[%clk 0:01:36]} 32. Nf4 {[%clk 0:00:58]}  Nxf4 {[%clk 0:01:34]} 33. Rxf4 {[%clk 0:00:59]}  c5 {[%clk 0:01:35]} 34. Qa5 {[%clk 0:00:41]}  cxd4 {[%clk 0:01:29]} 35. Re1 {[%clk 0:00:40]}  Rd5 {[%clk 0:01:25]} 36. h3 {[%clk 0:00:33]}  d3 {[%clk 0:01:25]} 37. Qa8+ {[%clk 0:00:32]}  Kh7 {[%clk 0:01:23]} 38. Qe8 {[%clk 0:00:29]}  d2 {[%clk 0:01:21]} 39. Rd1 {[%clk 0:00:29]}  Rd7 {[%clk 0:01:02]} 40. g4 {[%clk 0:00:15]}  Qe5 {[%clk 0:00:58]} 41. Rf3 {[%clk 0:00:11]}  Qe1+ {[%clk 0:00:57]} 42. Kh2 {[%clk 0:00:08]}  Qxd1 {[%clk 0:00:55]} 43. Rxf7+ {[%clk 0:00:05]}  Rxf7 {[%clk 0:00:53]} 44. Qxe6 {[%clk 0:00:05]}  Qf3 {[%clk 0:00:53]} 0-1


[Site "https://www.chess.com"]

[Event "Titled Tuesday Blitz April 4 Early 2023"]
[White "Seemann, Jakub"]
[Black "Bacrot, Etienne"]
[WhiteFideId "21874697"]
[BlackFideId "605506"]
[WhiteElo "2364"]
[BlackElo "2663"]
[Result "0-1"]
[Round "06"]
[TimeControl "180+2"]
[Date "2023.04.04"]
[WhiteClock "0:00:01"]
[BlackClock "0:00:36"]

1. d4 {[%clk 0:03:00]}  Nf6 {[%clk 0:02:58]} 2. c4 {[%clk 0:03:00]}  c5 {[%clk 0:02:59]} 3. d5 {[%clk 0:03:00]}  b5 {[%clk 0:02:59]} 4. cxb5 {[%clk 0:03:01]}  a6 {[%clk 0:02:59]} 5. bxa6 {[%clk 0:03:01]}  g6 {[%clk 0:02:59]} 6. Nc3 {[%clk 0:03:02]}  Bg7 {[%clk 0:03:00]} 7. e4 {[%clk 0:03:03]}  O-O {[%clk 0:03:00]} 8. e5 {[%clk 0:03:03]}  Ne8 {[%clk 0:03:00]} 9. h4 {[%clk 0:03:04]}  h5 {[%clk 0:02:53]} 10. Nf3 {[%clk 0:03:00]}  d6 {[%clk 0:02:49]} 11. e6 {[%clk 0:02:56]}  fxe6 {[%clk 0:02:49]} 12. dxe6 {[%clk 0:02:56]}  Bxe6 {[%clk 0:02:49]} 13. Bd3 {[%clk 0:02:54]}  Bf5 {[%clk 0:02:21]} 14. Ng5 {[%clk 0:02:41]}  Qd7 {[%clk 0:02:11]} 15. Bxf5 {[%clk 0:02:35]}  Qxf5 {[%clk 0:02:10]} 16. Qd5+ {[%clk 0:02:28]}  Qxd5 {[%clk 0:02:02]} 17. Nxd5 {[%clk 0:02:29]}  Nc6 {[%clk 0:01:43]} 18. Ne6 {[%clk 0:02:28]}  Rf5 {[%clk 0:01:41]} 19. Ne3 {[%clk 0:02:16]}  Re5 {[%clk 0:01:34]} 20. Nxg7 {[%clk 0:02:15]}  Nxg7 {[%clk 0:01:33]} 21. Bd2 {[%clk 0:02:13]}  Rxa6 {[%clk 0:01:31]} 22. Bc3 {[%clk 0:02:11]}  Re4 {[%clk 0:01:28]} 23. Kd2 {[%clk 0:01:54]}  Nf5 {[%clk 0:01:16]} 24. Nxf5 {[%clk 0:01:48]}  gxf5 {[%clk 0:01:16]} 25. f3 {[%clk 0:01:49]}  Rea4 {[%clk 0:01:14]} 26. a3 {[%clk 0:01:47]}  d5 {[%clk 0:01:13]} 27. Kc2 {[%clk 0:01:41]}  e5 {[%clk 0:01:11]} 28. Rae1 {[%clk 0:01:18]}  d4 {[%clk 0:01:08]} 29. Bd2 {[%clk 0:01:19]}  Kf7 {[%clk 0:01:07]} 30. g4 {[%clk 0:01:17]}  hxg4 {[%clk 0:00:58]} 31. fxg4 {[%clk 0:01:18]}  e4 {[%clk 0:00:58]} 32. g5 {[%clk 0:00:47]}  e3 {[%clk 0:00:57]} 33. h5 {[%clk 0:00:43]}  exd2 {[%clk 0:00:47]} 34. g6+ {[%clk 0:00:42]}  Kf6 {[%clk 0:00:47]} 35. Kxd2 {[%clk 0:00:42]}  Ra8 {[%clk 0:00:44]} 36. Reg1 {[%clk 0:00:21]}  Ne5 {[%clk 0:00:42]} 37. Kd1 {[%clk 0:00:05]}  R4a7 {[%clk 0:00:38]} 38. Re1 {[%clk 0:00:02]}  Ng4 {[%clk 0:00:37]} 39. Rh3 {[%clk 0:00:01]}  Nf2+ {[%clk 0:00:36]} 0-1


[Site "https://www.chess.com"]